fUST/lending_fUST_20260117
["ID","MTS","AMOUNT","RATE_DAILY","PERIOD"]
[402253425,1768623055864,-500.0,0.00019178,3]
[402253426,1768623055873,-479.31164843,0.00019178,3]
[402253427,1768623055883,-500.0,0.00019178,3]
[402253428,1768623055892,-218.2240779,0.00019178,3]
[402253429,1768623055901,-500.0,0.00019178,3]
[402253430,1768623055911,-500.0,0.00019178,3]
[402253431,1768623055919,-500.0,0.00019178,3]
[402253432,1768623055929,-645.09,0.00019178,3]
[402253433,1768623055939,-500.0,0.00019178,3]
[402253434,1768623055949,-500.0,0.00019178,3]
[402253435,1768623055958,-1128.36,0.00019178,3]
[402253436,1768623055971,-500.0,0.00019178,3]
[402253437,1768623055980,-1453.64,0.00019178,3]
[402253438,1768623055989,-1568.85,0.00019178,2]
[402253439,1768623055998,-500.0,0.00019178,3]
[402253440,1768623056008,-523.7,0.00019178,3]
[402253441,1768623056017,-500.0,0.00019178,3]
[402253442,1768623056026,-500.0,0.00019178,3]
[402253443,1768623056035,-614.93,0.00019178,3]
[402253444,1768623056045,-500.0,0.00019178,3]
[402253445,1768623056055,-500.0,0.00019178,3]
[402253446,1768623056064,-500.0,0.00019178,3]
[402253447,1768623056074,-754.41,0.00019178,3]
[402253448,1768623056083,-500.0,0.00019178,3]
[402253449,1768623056092,-500.0,0.00019178,2]
[402253450,1768623056101,-787.22,0.00019178,3]
[402253451,1768623056110,-500.0,0.00019178,3]
[402253452,1768623056119,-1219.06,0.00019178,3]
[402253453,1768623056128,-2026.27,0.00019178,3]
[402253454,1768623056137,-500.0,0.00019178,3]
[402253455,1768623056146,-1419.09,0.00019178,3]
[402253456,1768623056155,-1388.11,0.00019178,3]
[402253457,1768623056164,-508.51651972,0.00019178,3]
[402253458,1768623056174,-500.0,0.00019178,3]
[402253459,1768623056184,-500.0,0.00019178,3]
[402253460,1768623056193,-500.0,0.00019178,3]
[402253461,1768623056202,-723.07,0.00019178,3]
[402253462,1768623056211,-500.0,0.00019178,3]
[402253463,1768623056220,-500.0,0.00019178,2]
[402253464,1768623056230,-500.0,0.00019178,3]
[402253465,1768623056239,-2937.59,0.00019178,3]
[402253466,1768623056249,-500.0,0.00019178,3]
[402253467,1768623056258,-500.0,0.00019178,3]
[402253468,1768623056271,-500.22,0.00019178,3]
[402253469,1768623056281,-818.36,0.00019178,3]
[402253470,1768623056290,-762.09,0.00019178,3]
[402253471,1768623056300,-500.0,0.00019178,3]
[402253472,1768623056310,-812.25,0.00019178,3]
[402253473,1768623056319,-981.83,0.00019178,3]
[402253474,1768623056330,-500.0,0.00019178,3]
[402253475,1768623056341,-500.0,0.00019178,3]
[402253476,1768623056350,-500.0,0.00019178,3]
[402253477,1768623056360,-522.78394003,0.00019178,3]
[402253478,1768623056370,-500.0,0.00019178,3]
[402253479,1768623056379,-500.0,0.00019178,3]
[402253480,1768623056388,-500.0,0.00019178,3]
[402253481,1768623056397,-500.0,0.00019178,3]
[402253482,1768623056407,-451.40995778,0.00019178,3]
[402253483,1768623056416,-500.0,0.00019178,3]
[402253484,1768623056425,-233.19102223,0.00019178,3]
[402253485,1768623056435,-500.0,0.00019178,3]
[402253486,1768623056444,-542.81,0.00019178,3]
[402253487,1768623056453,-500.0,0.00019178,3]
[402253488,1768623056462,-500.0,0.00019178,3]
[402253489,1768623056472,-500.0,0.00019178,3]
[402253490,1768623056481,-500.0,0.00019178,3]
[402253491,1768623056490,-500.0,0.00019178,2]
[402253492,1768623056499,-500.0,0.00019178,3]
[402253493,1768623056508,-500.0,0.00019178,3]
[402253494,1768623056517,-500.0,0.00019178,3]
[402253495,1768623056527,-565.74,0.00019178,3]
[402253496,1768623056536,-500.0,0.00019178,2]
[402253497,1768623056545,-632.04690666,0.00019178,3]
[402253498,1768623056554,-855.22,0.00019178,3]
[402253499,1768623056564,-500.0,0.00019178,3]
[402253500,1768623056573,-756.76,0.00019178,3]
[402253501,1768623056583,-703.46,0.00019178,3]
[402253502,1768623056592,-500.0,0.00019178,3]
[402253503,1768623056601,-500.0,0.00019178,3]
[402253504,1768623056610,-500.0,0.00019178,3]
[402253505,1768623056620,-1092.11,0.00019178,3]
[402253506,1768623056629,-500.0,0.00019178,3]
[402253507,1768623056639,-8808.39,0.00019178,3]
[402253508,1768623056648,-1698.81,0.00019178,3]
[402253509,1768623056658,-500.0,0.00019178,3]
[402253510,1768623056667,-500.0,0.00019178,3]
[402253511,1768623056677,-500.0,0.00019178,3]
[402253512,1768623056686,-500.0,0.00019178,3]
[402253513,1768623056696,-500.0,0.00019178,3]
[402253514,1768623056705,-1732.14,0.00019178,3]
[402253515,1768623056715,-500.0,0.00019178,3]
[402253516,1768623056724,-500.0,0.00019178,3]
[402253517,1768623056734,-500.0,0.00019178,3]
[402253518,1768623056743,-3350.84,0.00019178,3]
[402253519,1768623056753,-974.42,0.00019178,3]
[402253520,1768623056762,-500.0,0.00019178,3]
[402253521,1768623056771,-500.0,0.00019178,3]
[402253522,1768623056780,-512.29,0.00019178,3]
[402253523,1768623056790,-1023.1,0.00019178,3]
[402253524,1768623056799,-500.0,0.00019178,3]
[402253525,1768623056809,-657.53,0.00019178,3]
[402253526,1768623056818,-1710.74,0.00019178,3]
[402253527,1768623056828,-603.08,0.00019178,3]
[402253528,1768623056837,-500.0,0.00019178,3]
[402253529,1768623056847,-816.19,0.00019178,3]
[402253530,1768623056856,-599.53,0.00019178,3]
[402253531,1768623056866,-500.0,0.00019178,3]
[402253532,1768623056875,-500.0,0.00019178,3]
[402253533,1768623056885,-500.0,0.00019178,3]
[402253534,1768623056894,-500.0,0.00019178,3]
[402253535,1768623056903,-627.98,0.00019178,3]
[402253536,1768623056913,-1931.52,0.00019178,3]
[402253537,1768623056922,-500.0,0.00019178,3]
[402253538,1768623056932,-1293.83,0.00019178,3]
[402253539,1768623056942,-500.0,0.00019178,3]
[402253540,1768623056951,-933.6,0.00019178,3]
[402253541,1768623056960,-500.0,0.00019178,3]
[402253542,1768623056969,-602.97,0.00019178,3]
[402253543,1768623056979,-511.01993808,0.00019178,3]
[402253544,1768623056988,-500.0,0.00019178,3]
[402253545,1768623056997,-500.0,0.00019178,3]
[402253546,1768623057007,-500.0,0.00019178,3]
[402253547,1768623057016,-528.93,0.00019178,3]
[402253548,1768623057025,-500.0,0.00019178,3]
[402253549,1768623057034,-500.0,0.00019178,3]
[402253550,1768623057044,-500.0,0.00019178,3]
[402253551,1768623057053,-500.0,0.00019178,3]
[402253552,1768623057063,-500.0,0.00019178,3]
[402253553,1768623057073,-500.0,0.00019178,3]
[402253554,1768623057082,-2128.12,0.00019178,3]
[402253555,1768623057091,-500.0,0.00019178,3]
[402253556,1768623057101,-500.0,0.00019178,3]
[402253557,1768623057110,-500.0,0.00019178,3]
[402253558,1768623057120,-858.73,0.00019178,3]
[402253559,1768623057129,-500.0,0.00019178,3]
[402253560,1768623057139,-933.55,0.00019178,3]
[402253561,1768623057148,-500.0,0.00019178,3]
[402253562,1768623057157,-1238.53,0.00019178,3]
[402253563,1768623057167,-500.0,0.00019178,3]
[402253564,1768623057176,-1118.79,0.00019178,3]
[402253565,1768623057185,-1925.72,0.00019178,3]
[402253566,1768623057194,-500.0,0.00019178,3]
[402253567,1768623057204,-1005.03,0.00019178,3]
[402253568,1768623057214,-960.95,0.00019178,3]
[402253569,1768623057224,-500.0,0.00019178,3]
[402253570,1768623057233,-500.0,0.00019178,3]
[402253571,1768623057242,-500.0,0.00019178,3]
[402253572,1768623057251,-500.0,0.00019178,3]
[402253573,1768623057261,-624.97,0.00019178,3]
[402253574,1768623057276,-500.0,0.00019178,3]
[402253575,1768623057286,-500.0,0.00019178,3]
[402253576,1768623057296,-500.0,0.00019178,3]
[402253577,1768623057306,-500.0,0.00019178,3]
[402253578,1768623057315,-332.91217118,0.00019178,3]
[402253579,1768623057325,-500.0,0.00019178,3]
[402253580,1768623057334,-509.94393011,0.00019178,3]
[402253581,1768623057344,-500.0,0.00019178,3]
[402253582,1768623057353,-540.01468021,0.00019178,3]
[402253583,1768623057362,-1160.43,0.00019178,3]
[402253584,1768623057371,-543.92,0.00019178,3]
[402253585,1768623057380,-500.0,0.00019178,3]
[402253586,1768623057390,-500.0,0.00019178,3]
[402253587,1768623057399,-513.27339487,0.00019178,3]
[402253588,1768623057408,-500.0,0.00019178,3]
[402253589,1768623057418,-500.0,0.00019178,3]
[402253590,1768623057427,-500.0,0.00019178,3]
[402253591,1768623057437,-500.0,0.00019178,3]
[402253592,1768623057446,-500.0,0.00019178,3]
[402253593,1768623057455,-500.0,0.00019178,3]
[402253594,1768623057464,-500.0,0.00019178,3]
[402253595,1768623057473,-500.0,0.00019178,3]
[402253596,1768623057482,-500.0,0.00019178,3]
[402253597,1768623057491,-500.0,0.00019178,3]
[402253598,1768623057500,-1743.64,0.00019178,3]
[402253599,1768623057510,-530.24,0.00019178,3]
[402253600,1768623057519,-500.0,0.00019178,3]
[402253601,1768623057529,-500.0,0.00019178,3]
[402253602,1768623057539,-1683.23,0.00019178,3]
[402253603,1768623057548,-500.0,0.00019178,3]
[402253604,1768623057557,-506.73766967,0.00019178,3]
[402253605,1768623057566,-500.0,0.00019178,3]
[402253606,1768623057575,-500.0,0.00019178,3]
[402253607,1768623057585,-1720.39,0.00019178,3]
[402253608,1768623057594,-500.0,0.00019178,3]
[402253609,1768623057603,-500.0,0.00019178,3]
[402253610,1768623057613,-500.0,0.00019178,3]
[402253611,1768623057622,-500.0,0.00019178,3]
[402253612,1768623057632,-500.0,0.00019178,3]
[402253613,1768623057641,-2042.09,0.00019178,3]
[402253614,1768623057651,-500.0,0.00019178,3]
[402253615,1768623057661,-500.0,0.00019178,3]
[402253616,1768623057671,-765.07,0.00019178,3]
[402253617,1768623057681,-355.72833428,0.00019178,3]
[402253618,1768623057691,-1596.53,0.00019178,3]
[402253619,1768623057701,-1137.09,0.00019178,3]
[402253620,1768623057711,-500.0,0.00019178,3]
[402253621,1768623057721,-685.57,0.00019178,3]
[402253622,1768623057730,-500.0,0.00019178,3]
[402253623,1768623057740,-500.0,0.00019178,3]
[402253624,1768623057750,-590.01,0.00019178,3]
[402253625,1768623057760,-607.17,0.00019178,3]
[402253626,1768623057770,-500.0,0.00019178,3]
[402253627,1768623057779,-500.0,0.00019178,3]
[402253628,1768623057789,-1187.12,0.00019178,3]
[402253629,1768623057799,-500.0,0.00019178,3]
[402253630,1768623057808,-500.0,0.00019178,3]
[402253631,1768623057817,-500.0,0.00019178,3]
[402253632,1768623057827,-885.93,0.00019178,3]
[402253633,1768623057837,-543.86957114,0.00019178,3]
[402253634,1768623057847,-1119.41,0.00019178,3]
[402253635,1768623057857,-500.0,0.00019178,3]
[402253636,1768623057866,-355.97567578,0.00019178,3]
[402253637,1768623057876,-500.0,0.00019178,3]
[402253638,1768623057886,-500.0,0.00019178,3]
[402253639,1768623057896,-500.0,0.00019178,3]
[402253640,1768623057906,-500.0,0.00019178,3]
[402253641,1768623057916,-500.0,0.00019178,3]
[402253642,1768623057926,-500.0,0.00019178,3]
[402253643,1768623057936,-500.0,0.00019178,3]
[402253644,1768623057945,-982.26,0.00019178,3]
[402253645,1768623057955,-500.0,0.00019178,3]
[402253646,1768623057964,-500.0,0.00019178,3]
[402253647,1768623057974,-1365.06,0.00019178,3]
[402253648,1768623057984,-512.26319681,0.00019178,3]
[402253649,1768623057994,-500.0,0.00019178,3]
[402253650,1768623058004,-500.0,0.00019178,2]
[402253651,1768623058014,-500.0,0.00019178,3]
[402253652,1768623058023,-566.39019728,0.00019178,3]
[402253653,1768623058033,-826.15,0.00019178,3]
[402253654,1768623058043,-500.0,0.00019178,3]
[402253655,1768623058052,-621.61,0.00019178,3]
[402253656,1768623058062,-460.4,0.00019178,3]
[402253657,1768623058071,-500.0,0.00019178,2]
[402253658,1768623058081,-1492.01,0.00019178,3]
[402253659,1768623058090,-500.0,0.00019178,3]
[402253660,1768623058099,-500.0,0.00019178,3]
[402253661,1768623058109,-853.91,0.00019178,3]
[402253662,1768623058119,-909.52,0.00019178,3]
[402253663,1768623058129,-500.0,0.00019178,3]
[402253664,1768623058138,-500.0,0.00019178,3]
[402253665,1768623058147,-500.0,0.00019178,3]
[402253666,1768623058157,-500.0,0.00019178,3]
[402253667,1768623058167,-828.47,0.00019178,2]
[402253668,1768623058177,-828.47,0.00019178,2]
[402253669,1768623058187,-2079.09,0.00019178,3]
[402253670,1768623058196,-828.47,0.00019178,2]
[402253671,1768623058206,-828.47,0.00019178,2]
[402253672,1768623058215,-828.47,0.00019178,2]
[402253673,1768623058224,-828.47,0.00019178,2]
[402253674,1768623058234,-828.47,0.00019178,2]
[402253675,1768623058244,-828.47,0.00019178,2]
[402253676,1768623058254,-500.0,0.00019178,2]
[402253677,1768623058268,-828.47,0.00019178,2]
[402253678,1768623058277,-828.47,0.00019178,2]
[402253679,1768623058287,-828.47,0.00019178,2]
[402253680,1768623058297,-828.47,0.00019178,2]
[402253681,1768623058307,-828.47,0.00019178,2]
[402253682,1768623058317,-828.47,0.00019178,2]
[402253683,1768623058327,-828.47,0.00019178,2]
[402253684,1768623058338,-504.12,0.00019178,3]
[402253685,1768623058348,-828.47,0.00019178,2]
[402253686,1768623058358,-500.0,0.00019178,3]
[402253687,1768623058368,-828.47,0.00019178,2]
[402253688,1768623058379,-828.47,0.00019178,2]
[402253689,1768623058388,-341.99608753,0.00019178,3]
[402253690,1768623058398,-828.47,0.00019178,2]
[402253691,1768623058408,-828.47,0.00019178,2]
[402253692,1768623058418,-500.0,0.00019178,3]
[402253693,1768623058428,-828.47,0.00019178,2]
[402253694,1768623058438,-828.47,0.00019178,2]
[402253695,1768623058448,-828.47,0.00019178,2]
[402253696,1768623058458,-828.63342155,0.00019178,2]
[402253697,1768623058468,-630.38,0.00019178,3]
[402253698,1768623058479,-500.0,0.00019178,3]
[402253699,1768623058489,-500.0,0.00019178,3]
[402253700,1768623058499,-500.0,0.00019178,3]
[402253701,1768623058510,-500.0,0.00019178,3]
[402253702,1768623058520,-742.2,0.00019178,3]
[402253703,1768623058531,-223.13252063,0.00019178,2]
[402253704,1768623058541,-151.0,0.00019178,2]
[402253705,1768623058551,-151.0,0.00019178,2]
[402253706,1768623058561,-151.0,0.00019178,2]
[402253707,1768623058571,-151.0,0.00019178,2]
[402253708,1768623058580,-235.000087,0.00019178,2]
[402253709,1768623058590,-1582.960842,0.00019178,2]
[402253710,1768623058599,-1582.960842,0.00019178,2]
[402253711,1768623058609,-1582.960842,0.00019178,2]
[402253712,1768623058619,-1582.960842,0.00019178,2]
[402253713,1768623058629,-1582.960842,0.00019178,2]
[402253714,1768623058639,-1582.960842,0.00019178,2]
[402253715,1768623058649,-1582.960842,0.00019178,2]
[402253716,1768623058658,-1582.960842,0.00019178,2]
[402253717,1768623058668,-1582.960842,0.00019178,2]
[402253718,1768623058678,-1582.960842,0.00019178,2]
[402253719,1768623058688,-1582.960842,0.00019178,2]
[402253720,1768623058698,-1582.960842,0.00019178,2]
[402253721,1768623058708,-1582.960842,0.00019178,2]
[402253722,1768623058719,-1582.960842,0.00019178,2]
[402253723,1768623058729,-1582.960842,0.00019178,2]
[402253724,1768623058739,-1582.960842,0.00019178,2]
[402253725,1768623058749,-1582.960842,0.00019178,2]
[402253726,1768623058759,-1582.960842,0.00019178,2]
[402253727,1768623058768,-1582.960842,0.00019178,2]
[402253728,1768623058778,-1582.960845,0.00019178,2]
[402253729,1768623058788,-5500.0,0.00019178,2]
[402253730,1768623058798,-5500.0,0.00019178,2]
[402253731,1768623058808,-229.82,0.000192,2]
[402253732,1768623058818,-226.53,0.000192,2]
[402253733,1768623058827,-167.87,0.000192,2]
[402253734,1768623058837,-4113.88,0.000192,2]
[402253735,1768623058847,-15688.13127962,0.000192,2]
[402253736,1768623060362,-500.0,0.00012098,2]
[402253737,1768623060373,-1320.735,0.00019178,3]
[402253738,1768623061694,-383.31,0.00015332,3]
[402253739,1768623061704,-505.0,0.00018441,5]
[402253740,1768623061713,-379.83725421,0.00018536,2]
[402253741,1768623061731,-120.16274579,0.00018536,2]
[402253742,1768623061740,-500.0,0.0001881,2]
[402253743,1768623061750,-5546.27995473,0.00019178,3]
[402253779,1768624232252,-371.1167699,0.0001,2]
[402253780,1768624232261,-560.0,0.0001,2]
[402253781,1768624232271,-191.06945874,0.0001109,2]
[402253782,1768624232280,-383.31,0.00012329,2]
[402253783,1768624232290,-225.46196131,0.0001309,2]
[402253784,1768624232298,-3026.04456865,0.00013173,2]
[402253785,1768624232308,-190.07416802,0.00013265,2]
[402253786,1768624232317,-500.0,0.00013265,2]
[402253787,1768624232326,-500.0,0.00013265,2]
[402253789,1768624232335,-500.0,0.00013265,2]
[402253791,1768624232344,-500.0,0.00013265,2]
[402253792,1768624232353,-500.0,0.00013265,2]
[402253794,1768624232363,-500.0,0.00013265,2]
[402253796,1768624232373,-500.0,0.00013265,2]
[402253798,1768624232383,-500.0,0.00013265,2]
[402253800,1768624232392,-446.65004451,0.00013265,2]
[402253802,1768624232402,-500.0,0.00013265,2]
[402253804,1768624232411,-500.0,0.00013265,2]
[402253806,1768624232419,-500.0,0.00013265,2]
[402253807,1768624232428,-500.0,0.00013265,2]
[402253808,1768624232437,-462.4302424,0.00013265,2]
[402253809,1768624232446,-500.0,0.00013265,2]
[402253810,1768624232455,-500.0,0.00013265,2]
[402253811,1768624232464,-500.0,0.00013265,2]
[402253812,1768624232473,-500.0,0.00013265,2]
[402253814,1768624232482,-500.0,0.00013265,2]
[402253816,1768624232491,-500.0,0.00013265,2]
[402253818,1768624232500,-500.0,0.00013265,2]
[402253820,1768624232509,-500.0,0.00013265,2]
[402253822,1768624232518,-500.0,0.00013265,2]
[402253824,1768624232527,-500.0,0.00013265,2]
[402253826,1768624232536,-111.78790925,0.00013265,2]
[402253828,1768624232547,-388.21209075,0.00013265,2]
[402253830,1768624232556,-588.44189097,0.00013265,2]
[402253832,1768624232565,-25.66170553,0.00013265,2]
[402253956,1768624238488,-474.33829447,0.00013265,2]
[402253957,1768624238498,-500.0,0.00013265,2]
[402253958,1768624238507,-500.0,0.00013265,2]
[402253959,1768624238516,-500.0,0.00013265,2]
[402253960,1768624238525,-500.0,0.00013265,2]
[402253961,1768624238534,-500.0,0.00013265,2]
[402253962,1768624238544,-500.0,0.00013265,2]
[402253963,1768624238553,-500.0,0.00013265,2]
[402253964,1768624238563,-500.0,0.00013265,2]
[402253965,1768624238572,-500.0,0.00013265,2]
[402253966,1768624238581,-536.2104835,0.00013265,2]
[402253967,1768624238591,-500.0,0.00013265,2]
[402253968,1768624238600,-500.0,0.00013265,2]
[402253969,1768624238609,-500.0,0.00013265,2]
[402253970,1768624238619,-500.0,0.00013265,2]
[402253971,1768624238629,-500.0,0.00013265,2]
[402253972,1768624238638,-500.0,0.00013265,2]
[402253973,1768624238647,-500.0,0.00013265,2]
[402253974,1768624238656,-500.0,0.00013265,2]
[402253975,1768624238665,-500.0,0.00013265,2]
[402253976,1768624238675,-645.43754401,0.00013265,2]
[402253977,1768624238685,-500.0,0.00013265,2]
[402253978,1768624238694,-500.0,0.00013265,2]
[402253979,1768624238703,-500.0,0.00013265,2]
[402253980,1768624238712,-500.0,0.00013265,2]
[402253981,1768624238722,-387.19103224,0.00013273,2]
[402253982,1768624238732,-500.0,0.00013273,2]
[402253983,1768624238741,-500.0,0.00013273,2]
[402253984,1768624238751,-500.0,0.00013273,2]
[402253985,1768624238760,-500.0,0.00013273,2]
[402253986,1768624238770,-500.0,0.00013273,2]
[402253987,1768624238779,-500.0,0.00013273,2]
[402253988,1768624238789,-500.0,0.00013273,2]
[402253989,1768624238798,-500.0,0.00013273,2]
[402253990,1768624238807,-500.0,0.00013273,2]
[402253991,1768624238817,-500.0,0.00013273,2]
[402253992,1768624238826,-500.0,0.00013273,2]
[402253993,1768624238835,-501.23190199,0.00013273,2]
[402253994,1768624238845,-500.0,0.00013273,2]
[402253995,1768624238854,-500.0,0.00013273,2]
[402253996,1768624238864,-500.0,0.00013273,2]
[402253997,1768624238878,-500.0,0.00013273,2]
[402253998,1768624238887,-501.45177339,0.00013273,2]
[402253999,1768624238897,-500.0,0.00013273,2]
[402254000,1768624238907,-500.0,0.00013273,2]
[402254001,1768624238918,-327.61217589,0.00013273,2]
[402254002,1768624238928,-500.0,0.00013273,2]
[402254003,1768624238939,-259.23463494,0.00013273,2]
[402254004,1768624238949,-500.0,0.00013273,2]
[402254005,1768624238959,-500.0,0.00013273,2]
[402254006,1768624238969,-500.0,0.00013273,2]
[402254007,1768624238979,-500.0,0.00013273,2]
[402254008,1768624238991,-500.0,0.00013273,2]
[402254009,1768624239002,-500.0,0.00013273,2]
[402254010,1768624239012,-500.0,0.00013273,2]
[402254011,1768624239026,-200.0,0.00013407,2]
[402254012,1768624239036,-242.21989488,0.00013407,2]
[402254013,1768624239045,-300.0,0.00013673,2]
[402254014,1768624239055,-650.0269876,0.00013698,2]
[402254015,1768624239065,-186.03830254,0.00013698,2]
[402254016,1768624239075,-500.0,0.00013698,2]
[402254017,1768624239085,-500.0,0.00013698,2]
[402254018,1768624239095,-500.0,0.00013698,2]
[402254019,1768624239108,-500.0,0.00013698,2]
[402254020,1768624239118,-500.0,0.00013698,2]
[402254021,1768624239128,-500.0,0.00013698,2]
[402254022,1768624239138,-500.0,0.00013698,2]
[402254023,1768624239148,-500.0,0.00013698,2]
[402254024,1768624239158,-500.0,0.00013698,2]
[402254025,1768624239168,-500.0,0.00013698,2]
[402254026,1768624239178,-1796.097192,0.00013699,2]
[402254027,1768624239187,-500.0,0.00013699,2]
[402254028,1768624239196,-500.0,0.00013699,2]
[402254029,1768624239206,-500.0,0.00013699,2]
[402254030,1768624239215,-500.0,0.00013699,2]
[402254031,1768624239226,-500.0,0.00013699,2]
[402254032,1768624239237,-301.97270584,0.00013699,2]
[402254033,1768624239248,-371.29740831,0.00013699,2]
[402254034,1768624239257,-500.0,0.00013699,2]
[402254035,1768624239269,-500.0,0.00013699,2]
[402254036,1768624239278,-500.0,0.00013699,2]
[402254037,1768624239556,-500.0,0.00013699,2]
[402254038,1768624239663,-500.0,0.00013699,2]
[402254039,1768624239673,-158.61861727,0.00013699,2]
[402254040,1768624239683,-500.0,0.00013699,2]
[402254041,1768624239692,-414.0095491,0.00013699,2]
[402254042,1768624239701,-500.0,0.00013699,2]
[402254043,1768624239710,-500.0,0.00013699,2]
[402254044,1768624239720,-500.0,0.00013699,2]
[402254045,1768624239730,-500.25020701,0.00013699,2]
[402254046,1768624239739,-500.0,0.00013699,2]
[402254047,1768624239748,-500.0,0.00013699,2]
[402254048,1768624239758,-500.0,0.00013699,2]
[402254049,1768624239767,-500.0,0.00013699,2]
[402254050,1768624239776,-506.56819368,0.00013699,2]
[402254051,1768624239785,-500.0,0.00013699,2]
[402254052,1768624239795,-500.0,0.00013699,2]
[402254053,1768624239804,-500.0,0.00013699,2]
[402254054,1768624239814,-500.0,0.00013699,2]
[402254055,1768624239823,-500.0,0.00013699,2]
[402254056,1768624239832,-500.0,0.00013699,2]
[402254057,1768624239842,-500.0,0.00013699,2]
[402254058,1768624239852,-500.43009045,0.00013699,2]
[402254059,1768624239862,-500.0,0.00013699,2]
[402254060,1768624239876,-500.0,0.00013699,2]
[402254061,1768624239885,-500.0,0.00013699,2]
[402254062,1768624239895,-500.0,0.00013699,2]
[402254063,1768624239905,-500.0,0.00013699,2]
[402254064,1768624239915,-500.0,0.00013699,2]
[402254065,1768624239925,-500.0,0.00013699,2]
[402254066,1768624239935,-500.0,0.00013699,2]
[402254067,1768624239947,-164.00087292,0.00013699,2]
[402254068,1768624239957,-500.0,0.00013699,2]
[402254069,1768624239967,-213.20179048,0.00013699,2]
[402254070,1768624239978,-500.0,0.0001382,2]
[402254071,1768624239988,-398.68510635,0.00013821,2]
[402254072,1768624239997,-1000.0,0.00013821,2]
[402254073,1768624240008,-1000.0,0.00013821,2]
[402254074,1768624240018,-654.81140965,0.00013821,2]
[402254075,1768624240027,-1000.0,0.00013821,2]
[402254076,1768624240037,-1000.0,0.00013821,2]
[402254077,1768624240046,-1000.0,0.00013821,2]
[402254078,1768624240057,-1000.0,0.00013821,2]
[402254079,1768624240067,-1000.0,0.00013821,2]
[402254080,1768624240076,-500.0,0.00013821,2]
[402254082,1768624240086,-1000.0,0.00013821,2]
[402254083,1768624240095,-1000.0,0.00013821,2]
[402254084,1768624240104,-1000.0,0.00013821,2]
[402254085,1768624240113,-1000.0,0.00013821,2]
[402254086,1768624240123,-666.08754188,0.00013821,2]
[402254088,1768624240133,-1000.0,0.00013821,2]
[402254089,1768624240142,-1000.0,0.00013821,2]
[402254090,1768624240152,-1000.0,0.00013821,2]
[402254091,1768624240162,-1000.0,0.00013821,2]
[402254092,1768624240171,-1000.0,0.00013821,2]
[402254093,1768624240181,-730.46949765,0.00013821,2]
[402254094,1768624240190,-784.74191732,0.00013821,2]
[402254095,1768624240200,-1000.0,0.00013821,2]
[402254096,1768624240209,-1000.0,0.00013821,2]
[402254097,1768624240217,-1000.0,0.00013821,2]
[402254098,1768624240227,-150.22349183,0.00013973,2]
[402254099,1768624240236,-500.0,0.00014151,2]
[402254100,1768624240246,-500.0,0.00014151,2]
[402254101,1768624240256,-500.0,0.00014151,2]
[402254102,1768624240265,-500.0,0.00014151,2]
[402254103,1768624240273,-500.0,0.00014151,2]